[Event "MČR v bleskovém šachu družstev 2019"]
[Site "Teplice, Czech Republic"]
[Date "2019.09.14"]
[Round "1.1"]
[White "Bach, Markus"]
[Black "Kociscak, Jiri"]
[Result "1/2-1/2"]
[TimeControl "3 mim. + 2 s"]
[BlackTitle "IM"]
[WhiteFideId "24603376"]
[BlackFideId "322121"]
[WhiteElo "2259"]
[BlackElo "2417"]

1. d4 {[%clk 00:03:01]} {[%emt 00:00:01]} d5 {[%clk 00:03:02]} {[%emt
00:00:03]} 2. Bg5 {[%clk 00:03:02]} {[%emt 00:00:02]} h6 {[%clk 00:02:52]}
{[%emt 00:00:13]} 3. Bh4 {[%clk 00:03:02]} {[%emt 00:00:01]} c6 {[%clk
00:02:45]} {[%emt 00:00:09]} 4. e3 {[%clk 00:02:53]} {[%emt 00:00:11]} Qb6
{[%clk 00:02:41]} {[%emt 00:00:06]} 5. Qc1 {[%clk 00:02:49]} {[%emt 00:00:06]}
e5 {[%clk 00:02:40]} {[%emt 00:00:03]} 6. Nf3 {[%clk 00:02:43]} {[%emt
00:00:08]} e4 {[%clk 00:02:17]} {[%emt 00:00:24]} 7. Nfd2 {[%clk 00:02:40]}
{[%emt 00:00:05]} Be6 {[%clk 00:01:47]} {[%emt 00:00:32]} 8. c4 {[%clk
00:02:32]} {[%emt 00:00:11]} Nd7 {[%clk 00:01:46]} {[%emt 00:00:03]} 9. Nc3
{[%clk 00:02:30]} {[%emt 00:00:05]} Ne7 {[%clk 00:01:20]} {[%emt 00:00:27]} 10.
Be2 {[%clk 00:01:28]} {[%emt 00:01:04]} Nf5 {[%clk 00:01:20]} {[%emt 00:00:03]}
11. Bg3 {[%clk 00:01:30]} Nxg3 {[%clk 00:01:11]} {[%emt 00:00:11]} 12. hxg3
{[%clk 00:01:30]} {[%emt 00:00:02]} Be7 {[%clk 00:01:12]} 13. Rb1 {[%clk
00:01:28]} {[%emt 00:00:05]} O-O {[%emt 00:00:06]} 14. a3 Nf6 {[%clk 00:01:06]}
{[%emt 00:00:04]} 15. b4 {[%clk 00:01:29]} {[%emt 00:00:03]} a6 {[%clk
00:00:49]} {[%emt 00:00:19]} 16. c5 {[%clk 00:00:49]} {[%emt 00:00:42]} Qc7
{[%clk 00:00:50]} {[%emt 00:00:02]} 17. Na4 {[%clk 00:00:51]} Bg4 {[%clk
00:00:49]} {[%emt 00:00:03]} 18. Qd1 {[%clk 00:00:50]} {[%emt 00:00:02]} Bxe2
{[%clk 00:00:43]} {[%emt 00:00:08]} 19. Qxe2 {[%clk 00:00:51]} {[%emt
00:00:01]} Rae8 {[%clk 00:00:43]} {[%emt 00:00:01]} 20. Nb6 {[%clk 00:00:51]}
{[%emt 00:00:02]} Bd8 {[%clk 00:00:43]} {[%emt 00:00:02]} 21. a4 {[%clk
00:00:47]} {[%emt 00:00:06]} Qb8 {[%clk 00:00:41]} {[%emt 00:00:04]} 22. a5
{[%clk 00:00:47]} {[%emt 00:00:03]} Bc7 {[%clk 00:00:42]} {[%emt 00:00:01]} 23.
Kd1 {[%clk 00:00:47]} {[%emt 00:00:02]} Qd8 {[%clk 00:00:42]} {[%emt 00:00:02]}
24. Kc2 {[%clk 00:00:48]} {[%emt 00:00:01]} Nh7 {[%clk 00:00:42]} {[%emt
00:00:02]} 25. Qh5 {[%clk 00:00:48]} {[%emt 00:00:02]} Ng5 {[%clk 00:00:43]}
{[%emt 00:00:01]} 26. Rbf1 {[%clk 00:00:42]} {[%emt 00:00:08]} Re6 {[%clk
00:00:43]} {[%emt 00:00:02]} 27. Nb1 {[%clk 00:00:38]} {[%emt 00:00:06]} Rf6
{[%clk 00:00:42]} {[%emt 00:00:03]} 28. Nc3 {[%emt 00:00:03]} Re8 {[%clk
00:00:41]} {[%emt 00:00:01]} 29. Ne2 {[%clk 00:00:39]} {[%emt 00:00:02]} Ne6
{[%clk 00:00:37]} {[%emt 00:00:06]} 30. Nf4 {[%clk 00:00:40]} Nf8 {[%clk
00:00:29]} {[%emt 00:00:11]} 31. Na4 {[%clk 00:00:41]} {[%emt 00:00:01]} Qd7
{[%clk 00:00:27]} {[%emt 00:00:03]} 32. Nc3 {[%clk 00:00:42]} {[%emt 00:00:01]}
Rf5 {[%clk 00:00:27]} {[%emt 00:00:02]} 33. Qh3 {[%clk 00:00:43]} {[%emt
00:00:01]} 1/2-1/2

[Event "MČR v bleskovém šachu družstev 2019"]
[Site "Teplice, Czech Republic"]
[Date "2019.09.14"]
[Round "1.2"]
[White "Polak, Tomas"]
[Black "Buchcar, Tomas"]
[Result "1-0"]
[TimeControl "3 mim. + 2 s"]
[WhiteTitle "GM"]
[WhiteFideId "300560"]
[BlackFideId "328421"]
[WhiteElo "2510"]
[BlackElo "2145"]

1. d4 {[%clk 00:03:01]} {[%emt 00:00:02]} Nf6 {[%clk 00:03:03]} {[%emt
00:00:01]} 2. c4 {[%clk 00:03:03]} {[%emt 00:00:01]} c5 {[%clk 00:03:04]} 3. d5
{[%clk 00:03:04]} {[%emt 00:00:02]} e5 {[%clk 00:03:05]} 4. Nc3 {[%clk
00:03:03]} {[%emt 00:00:03]} d6 {[%clk 00:03:06]} {[%emt 00:00:01]} 5. e4
{[%clk 00:03:03]} {[%emt 00:00:01]} Be7 {[%clk 00:03:06]} {[%emt 00:00:02]} 6.
Be2 {[%clk 00:03:02]} {[%emt 00:00:03]} Nbd7 {[%clk 00:03:06]} {[%emt
00:00:02]} 7. Nf3 {[%clk 00:02:57]} {[%emt 00:00:07]} Nf8 {[%clk 00:03:06]}
{[%emt 00:00:02]} 8. g3 {[%clk 00:02:56]} {[%emt 00:00:04]} Ng6 {[%clk
00:03:00]} {[%emt 00:00:09]} 9. h4 {[%clk 00:02:56]} {[%emt 00:00:01]} h6
{[%clk 00:02:57]} {[%emt 00:00:05]} 10. h5 {[%clk 00:02:55]} {[%emt 00:00:03]}
Nf8 {[%clk 00:02:58]} {[%emt 00:00:01]} 11. Nh4 {[%clk 00:02:51]} {[%emt
00:00:06]} N6h7 {[%clk 00:02:50]} {[%emt 00:00:10]} 12. Ng2 {[%clk 00:02:46]}
{[%emt 00:00:07]} a6 {[%clk 00:02:46]} {[%emt 00:00:06]} 13. Be3 {[%clk
00:02:40]} {[%emt 00:00:09]} Bg5 {[%clk 00:02:38]} {[%emt 00:00:09]} 14. f4
{[%clk 00:02:40]} {[%emt 00:00:01]} Bf6 {[%clk 00:02:40]} 15. Qc2 {[%clk
00:02:35]} {[%emt 00:00:08]} Bd7 {[%clk 00:02:39]} {[%emt 00:00:03]} 16. a4
{[%clk 00:02:35]} {[%emt 00:00:02]} Qa5 {[%clk 00:02:34]} {[%emt 00:00:06]} 17.
Bd2 {[%clk 00:02:35]} {[%emt 00:00:03]} Qc7 {[%clk 00:02:33]} {[%emt 00:00:02]}
18. Ne3 {[%clk 00:02:27]} {[%emt 00:00:10]} Qc8 {[%clk 00:02:31]} {[%emt
00:00:03]} 19. Qd1 {[%clk 00:02:23]} {[%emt 00:00:06]} Qd8 {[%clk 00:02:08]}
{[%emt 00:00:25]} 20. Bg4 {[%clk 00:02:21]} {[%emt 00:00:05]} exf4 {[%clk
00:02:01]} {[%emt 00:00:09]} 21. gxf4 {[%clk 00:02:22]} {[%emt 00:00:01]} Bh4+
{[%clk 00:01:58]} {[%emt 00:00:05]} 22. Kf1 {[%clk 00:02:21]} {[%emt 00:00:03]}
Bf6 {[%clk 00:01:55]} {[%emt 00:00:06]} 23. Bxd7+ {[%clk 00:02:16]} {[%emt
00:00:07]} Nxd7 {[%clk 00:01:53]} {[%emt 00:00:03]} 24. Nf5 {[%clk 00:02:13]}
{[%emt 00:00:05]} Qc7 {[%clk 00:01:38]} {[%emt 00:00:17]} 25. Qg4 {[%clk
00:02:10]} {[%emt 00:00:05]} O-O-O {[%clk 00:01:27]} {[%emt 00:00:13]} 26. Rg1
{[%clk 00:02:00]} {[%emt 00:00:12]} Rhg8 {[%clk 00:01:25]} {[%emt 00:00:04]} 27.
a5 {[%clk 00:01:52]} {[%emt 00:00:09]} Kb8 {[%clk 00:01:06]} {[%emt 00:00:22]}
28. Qf3 {[%clk 00:01:45]} {[%emt 00:00:10]} Rde8 {[%clk 00:00:57]} {[%emt
00:00:10]} 29. Rg2 {[%clk 00:01:41]} {[%emt 00:00:06]} g5 {[%clk 00:00:20]}
{[%emt 00:00:39]} 30. Nxh6 {[%clk 00:01:37]} {[%emt 00:00:07]} Rg7 {[%clk
00:00:22]} 31. Nf5 {[%clk 00:01:35]} {[%emt 00:00:04]} Rgg8 {[%clk 00:00:23]}
{[%emt 00:00:01]} 32. Nh6 {[%clk 00:01:10]} {[%emt 00:00:27]} Rg7 {[%clk
00:00:24]} 33. Ng4 {[%clk 00:01:11]} {[%emt 00:00:01]} Bd4 {[%clk 00:00:24]}
{[%emt 00:00:02]} 34. h6 {[%clk 00:01:04]} {[%emt 00:00:09]} Rgg8 {[%clk
00:00:23]} {[%emt 00:00:02]} 35. f5 {[%clk 00:01:01]} {[%emt 00:00:05]} f6
{[%clk 00:00:22]} {[%emt 00:00:03]} 36. Nd1 {[%clk 00:00:45]} {[%emt 00:00:17]}
Ne5 {[%clk 00:00:23]} {[%emt 00:00:02]} 37. Nxe5 {[%clk 00:00:45]} {[%emt
00:00:02]} Rxe5 {[%clk 00:00:24]} {[%emt 00:00:01]} 38. Rg4 {[%clk 00:00:40]}
{[%emt 00:00:07]} Rge8 {[%clk 00:00:25]} 39. Rb1 {[%clk 00:00:38]} {[%emt
00:00:04]} Qe7 {[%clk 00:00:25]} {[%emt 00:00:02]} 40. Nc3 {[%clk 00:00:26]}
{[%emt 00:00:14]} Bxc3 {[%clk 00:00:26]} {[%emt 00:00:01]} 41. Bxc3 {[%emt
00:00:03]} Rxe4 42. Rxe4 {[%clk 00:00:20]} {[%emt 00:00:07]} Qxe4 {[%clk
00:00:29]} 43. Qxe4 {[%clk 00:00:16]} {[%emt 00:00:05]} Rxe4 {[%clk 00:00:31]}
44. Re1 {[%clk 00:00:17]} Rxe1+ {[%clk 00:00:29]} {[%emt 00:00:04]} 45. Kxe1
{[%clk 00:00:18]} {[%emt 00:00:01]} Kc7 {[%clk 00:00:31]} 46. Ke2 {[%clk
00:00:16]} {[%emt 00:00:04]} Kd7 {[%clk 00:00:32]} 47. Kf3 {[%clk 00:00:16]}
{[%emt 00:00:02]} Ke7 {[%clk 00:00:31]} {[%emt 00:00:02]} 48. Kg4 {[%clk
00:00:17]} Kf7 {[%clk 00:00:32]} {[%emt 00:00:02]} 49. b4 {[%clk 00:00:16]}
{[%emt 00:00:03]} Nf8 {[%clk 00:00:33]} 50. bxc5 {[%clk 00:00:10]} {[%emt
00:00:09]} dxc5 {[%clk 00:00:34]} 51. Kh5 {[%clk 00:00:10]} {[%emt 00:00:02]}
Nd7 {[%clk 00:00:35]} 52. Bb2 {[%clk 00:00:08]} {[%emt 00:00:03]} Nf8 {[%clk
00:00:35]} {[%emt 00:00:02]} 53. Bc1 {[%clk 00:00:08]} {[%emt 00:00:03]} Nd7
{[%clk 00:00:32]} {[%emt 00:00:05]} 54. Be3 {[%clk 00:00:09]} Ne5 {[%clk
00:00:31]} {[%emt 00:00:03]} 55. Bxc5 {[%clk 00:00:09]} {[%emt 00:00:02]} Nd3
{[%clk 00:00:32]} 56. Bd4 {[%clk 00:00:06]} {[%emt 00:00:05]} Nb4 {[%clk
00:00:27]} {[%emt 00:00:06]} 57. h7 {[%emt 00:00:04]} Kg7 58. h8=Q+ {[%clk
00:00:05]} {[%emt 00:00:02]} Kxh8 {[%clk 00:00:30]} {[%emt 00:00:01]} 59. Bxf6+
{[%clk 00:00:05]} {[%emt 00:00:02]} Kg8 {[%clk 00:00:31]} {[%emt 00:00:01]} 60.
Kxg5 {[%clk 00:00:05]} {[%emt 00:00:02]} Kf7 {[%clk 00:00:32]} 61. Bc3 {[%clk
00:00:04]} {[%emt 00:00:02]} Nc2 {[%clk 00:00:31]} {[%emt 00:00:03]} 62. Kf4
{[%clk 00:00:03]} {[%emt 00:00:03]} Na3 {[%clk 00:00:32]} {[%emt 00:00:01]} 63.
c5 {[%clk 00:00:04]} {[%emt 00:00:01]} Nc4 {[%clk 00:00:33]} 64. Ke4 {[%clk
00:00:05]} {[%emt 00:00:02]} Na3 {[%clk 00:00:31]} {[%emt 00:00:04]} 65. c6
{[%clk 00:00:05]} {[%emt 00:00:02]} bxc6 {[%clk 00:00:31]} {[%emt 00:00:02]} 66.
dxc6 {[%clk 00:00:06]} Nb5 {[%clk 00:00:32]} {[%emt 00:00:01]} 67. Be5 {[%clk
00:00:07]} Ke7 {[%clk 00:00:33]} {[%emt 00:00:02]} 68. Kd5 {[%clk 00:00:08]}
{[%emt 00:00:01]} Kd8 {[%clk 00:00:32]} {[%emt 00:00:03]} 69. f6 {[%clk
00:00:09]} {[%emt 00:00:01]} Kc8 {[%clk 00:00:27]} {[%emt 00:00:07]} 70. Ke4
{[%emt 00:00:08]} 1-0

[Event "MČR v bleskovém šachu družstev 2019"]
[Site "Teplice, Czech Republic"]
[Date "2019.09.14"]
[Round "1.3"]
[White "Tresnak, Filip"]
[Black "Stocek, Jiri"]
[Result "1-0"]
[TimeControl "3 mim. + 2 s"]
[BlackTitle "GM"]
[WhiteFideId "333905"]
[BlackFideId "304760"]
[WhiteElo "1931"]
[BlackElo "2505"]

1. e4 {[%clk 00:03:01]} {[%emt 00:00:02]} e6 {[%clk 00:02:54]} {[%emt
00:00:11]} 2. d4 {[%clk 00:03:02]} {[%emt 00:00:02]} d5 {[%clk 00:02:54]}
{[%emt 00:00:01]} 3. e5 {[%clk 00:03:02]} {[%emt 00:00:02]} c5 {[%clk
00:02:55]} {[%emt 00:00:02]} 4. c3 {[%clk 00:03:03]} {[%emt 00:00:01]} Nc6
{[%clk 00:02:56]} {[%emt 00:00:02]} 5. Nf3 {[%clk 00:03:04]} Bd7 {[%clk
00:02:56]} {[%emt 00:00:01]} 6. Be2 {[%clk 00:03:03]} {[%emt 00:00:03]} f6
{[%clk 00:02:57]} {[%emt 00:00:02]} 7. O-O {[%clk 00:02:59]} {[%emt 00:00:05]}
fxe5 {[%clk 00:02:57]} {[%emt 00:00:02]} 8. Nxe5 {[%clk 00:02:58]} {[%emt
00:00:03]} Nxe5 {[%clk 00:02:56]} {[%emt 00:00:03]} 9. dxe5 {[%clk 00:02:59]}
{[%emt 00:00:01]} Qc7 {[%clk 00:02:56]} {[%emt 00:00:02]} 10. f4 {[%clk
00:02:43]} {[%emt 00:00:18]} Nh6 {[%clk 00:02:54]} {[%emt 00:00:04]} 11. Nd2
{[%clk 00:02:39]} {[%emt 00:00:07]} Be7 {[%clk 00:02:50]} {[%emt 00:00:05]} 12.
Nf3 {[%clk 00:02:38]} {[%emt 00:00:02]} O-O-O {[%clk 00:02:45]} {[%emt
00:00:08]} 13. Be3 {[%clk 00:02:26]} {[%emt 00:00:14]} Kb8 {[%clk 00:02:32]}
{[%emt 00:00:15]} 14. Qc2 {[%clk 00:02:08]} {[%emt 00:00:20]} Rhf8 {[%clk
00:02:23]} {[%emt 00:00:11]} 15. Qxh7 {[%clk 00:01:48]} {[%emt 00:00:21]} Nf5
{[%clk 00:02:17]} {[%emt 00:00:07]} 16. Bf2 {[%clk 00:01:36]} {[%emt 00:00:14]}
g5 {[%clk 00:01:38]} {[%emt 00:00:42]} 17. Qh3 {[%clk 00:00:55]} {[%emt
00:00:43]} gxf4 {[%clk 00:01:31]} {[%emt 00:00:09]} 18. Rfd1 {[%clk 00:00:47]}
{[%emt 00:00:10]} Rg8 {[%clk 00:01:22]} {[%emt 00:00:11]} 19. g3 {[%clk
00:00:30]} {[%emt 00:00:19]} fxg3 {[%clk 00:01:10]} {[%emt 00:00:13]} 20. hxg3
{[%clk 00:00:29]} {[%emt 00:00:03]} Bc6 {[%clk 00:01:03]} {[%emt 00:00:09]} 21.
Bd3 {[%clk 00:00:17]} {[%emt 00:00:15]} Rdf8 {[%clk 00:00:59]} {[%emt
00:00:05]} 22. Bxf5 {[%clk 00:00:15]} {[%emt 00:00:04]} Rxf5 {[%clk 00:00:59]}
{[%emt 00:00:02]} 23. Rd3 {[%clk 00:00:14]} {[%emt 00:00:03]} d4 {[%clk
00:00:41]} {[%emt 00:00:20]} 24. Nh4 {[%clk 00:00:15]} {[%emt 00:00:01]} Rh5
{[%clk 00:00:34]} {[%emt 00:00:09]} 25. Kf1 {[%clk 00:00:12]} {[%emt 00:00:05]}
Bxh4 {[%clk 00:00:26]} {[%emt 00:00:09]} 26. gxh4 {[%clk 00:00:11]} {[%emt
00:00:03]} Bg2+ {[%clk 00:00:25]} {[%emt 00:00:03]} 27. Qxg2 {[%clk 00:00:09]}
{[%emt 00:00:04]} Rxg2 {[%clk 00:00:26]} {[%emt 00:00:01]} 28. Kxg2 {[%clk
00:00:10]} {[%emt 00:00:01]} Qxe5 {[%clk 00:00:24]} {[%emt 00:00:02]} 29. Bg3
{[%clk 00:00:10]} {[%emt 00:00:04]} Kc8 {[%clk 00:00:19]} {[%emt 00:00:07]} 30.
Bxe5 {[%clk 00:00:11]} {[%emt 00:00:01]} Rxe5 {[%clk 00:00:20]} {[%emt
00:00:01]} 31. cxd4 {[%clk 00:00:12]} {[%emt 00:00:02]} 1-0

[Event "MČR v bleskovém šachu družstev 2019"]
[Site "Teplice, Czech Republic"]
[Date "2019.09.14"]
[Round "1.4"]
[White "Vymazal, Bronislav"]
[Black "Prudek, Jiri"]
[Result "1-0"]
[TimeControl "3 mim. + 2 s"]
[WhiteFideId "318396"]
[BlackFideId "327310"]
[WhiteElo "2309"]
[BlackElo "1962"]

1. e4 {[%clk 00:03:01]} {[%emt 00:00:02]} c5 {[%clk 00:03:03]} {[%emt
00:00:02]} 2. Nf3 {[%clk 00:03:02]} {[%emt 00:00:01]} e6 {[%clk 00:03:04]}
{[%emt 00:00:01]} 3. d4 {[%clk 00:03:03]} {[%emt 00:00:01]} cxd4 {[%clk
00:03:05]} {[%emt 00:00:01]} 4. Nxd4 {[%clk 00:03:04]} a6 {[%clk 00:03:06]} 5.
Bd3 {[%clk 00:03:03]} {[%emt 00:00:04]} Qc7 {[%clk 00:03:07]} 6. Qe2 {[%clk
00:03:03]} {[%emt 00:00:03]} Nf6 {[%clk 00:03:07]} {[%emt 00:00:02]} 7. O-O
{[%clk 00:03:03]} {[%emt 00:00:03]} d6 {[%clk 00:03:07]} {[%emt 00:00:01]} 8.
c3 {[%clk 00:03:03]} {[%emt 00:00:02]} Nbd7 {[%clk 00:03:07]} {[%emt 00:00:02]}
9. Bg5 {[%clk 00:03:03]} {[%emt 00:00:02]} Be7 {[%clk 00:03:07]} {[%emt
00:00:02]} 10. Nd2 {[%clk 00:03:04]} {[%emt 00:00:01]} h6 {[%clk 00:03:08]}
{[%emt 00:00:01]} 11. Bh4 {[%clk 00:03:05]} b5 {[%clk 00:03:02]} {[%emt
00:00:07]} 12. Rae1 {[%clk 00:03:05]} {[%emt 00:00:02]} Bb7 {[%clk 00:03:02]}
{[%emt 00:00:02]} 13. f4 {[%clk 00:03:05]} {[%emt 00:00:02]} Nc5 {[%clk
00:02:30]} {[%emt 00:00:34]} 14. Bc2 {[%clk 00:02:54]} {[%emt 00:00:14]} Rg8
{[%clk 00:02:21]} {[%emt 00:00:11]} 15. e5 {[%clk 00:02:44]} {[%emt 00:00:11]}
Nfd7 {[%clk 00:01:56]} {[%emt 00:00:26]} 16. Bxe7 {[%clk 00:02:42]} {[%emt
00:00:04]} Kxe7 {[%clk 00:01:57]} {[%emt 00:00:01]} 17. exd6+ {[%clk 00:02:33]}
{[%emt 00:00:11]} Kxd6 {[%clk 00:01:48]} {[%emt 00:00:11]} 18. b4 {[%clk
00:02:13]} {[%emt 00:00:22]} Na4 {[%clk 00:01:40]} {[%emt 00:00:11]} 19. Nxe6
{[%clk 00:01:20]} {[%emt 00:00:54]} Qb6+ {[%clk 00:01:25]} {[%emt 00:00:17]} 20.
Nd4 {[%clk 00:01:03]} {[%emt 00:00:19]} Nxc3 {[%clk 00:01:00]} {[%emt
00:00:27]} 21. Qd3 {[%clk 00:01:03]} {[%emt 00:00:02]} Nd5 {[%clk 00:00:53]}
{[%emt 00:00:09]} 22. Kh1 {[%clk 00:00:42]} {[%emt 00:00:23]} Rae8 {[%clk
00:00:43]} {[%emt 00:00:12]} 23. Rc1 {[%clk 00:00:24]} {[%emt 00:00:20]} Ke7
{[%clk 00:00:20]} {[%emt 00:00:25]} 24. Bb3 {[%clk 00:00:16]} {[%emt 00:00:10]}
Kf8 {[%clk 00:00:14]} {[%emt 00:00:08]} 25. Nf5 {[%emt 00:00:37]} 1-0

[Event "MČR v bleskovém šachu družstev 2019"]
[Site "Teplice, Czech Republic"]
[Date "2019.09.14"]
[Round "1.5"]
[White "Jirovsky, Milos"]
[Black "Sprenar, Petr"]
[Result "1-0"]
[TimeControl "3 mim. + 2 s"]
[WhiteTitle "GM"]
[WhiteFideId "303224"]
[BlackFideId "397164"]
[WhiteElo "2499"]
[BlackElo "2173"]

1. Nf3 {[%clk 00:03:02]} d5 {[%clk 00:03:02]} {[%emt 00:00:03]} 2. c4 {[%clk
00:03:04]} e6 {[%clk 00:03:02]} {[%emt 00:00:03]} 3. g3 {[%clk 00:03:05]}
{[%emt 00:00:01]} Nf6 {[%clk 00:03:03]} {[%emt 00:00:01]} 4. Bg2 {[%clk
00:03:06]} Be7 {[%clk 00:03:04]} 5. O-O {[%clk 00:03:07]} {[%emt 00:00:03]} O-O
{[%clk 00:03:04]} {[%emt 00:00:02]} 6. d4 {[%clk 00:03:08]} {[%emt 00:00:01]}
dxc4 {[%clk 00:03:04]} {[%emt 00:00:01]} 7. Qc2 {[%clk 00:03:07]} {[%emt
00:00:03]} b6 {[%clk 00:03:04]} {[%emt 00:00:02]} 8. Nbd2 {[%clk 00:02:57]}
{[%emt 00:00:11]} Bb7 {[%clk 00:03:01]} {[%emt 00:00:05]} 9. Nxc4 {[%clk
00:02:58]} {[%emt 00:00:02]} c5 {[%clk 00:02:55]} {[%emt 00:00:08]} 10. Rd1
{[%clk 00:02:53]} {[%emt 00:00:06]} Nbd7 {[%clk 00:02:50]} {[%emt 00:00:07]} 11.
dxc5 {[%clk 00:02:17]} {[%emt 00:00:39]} Bxc5 {[%clk 00:02:50]} {[%emt
00:00:01]} 12. Bf4 {[%clk 00:02:11]} {[%emt 00:00:08]} Rc8 {[%clk 00:02:39]}
{[%emt 00:00:14]} 13. Qb3 {[%clk 00:02:09]} {[%emt 00:00:04]} Bd5 {[%clk
00:02:10]} {[%emt 00:00:31]} 14. Nfe5 {[%clk 00:02:06]} {[%emt 00:00:05]} Nxe5
{[%clk 00:01:53]} {[%emt 00:00:19]} 15. Bxd5 {[%clk 00:02:06]} {[%emt
00:00:02]} Nxd5 {[%clk 00:01:31]} {[%emt 00:00:24]} 16. Bxe5 {[%clk 00:01:49]}
{[%emt 00:00:19]} Qe7 {[%clk 00:01:17]} {[%emt 00:00:15]} 17. Rac1 {[%clk
00:01:16]} {[%emt 00:00:35]} Rfd8 {[%clk 00:01:17]} {[%emt 00:00:01]} 18. Qf3
{[%clk 00:01:05]} {[%emt 00:00:14]} f6 {[%clk 00:01:00]} {[%emt 00:00:19]} 19.
Bf4 {[%clk 00:01:06]} Nxf4 {[%clk 00:00:55]} {[%emt 00:00:07]} 20. Qxf4 {[%clk
00:01:05]} {[%emt 00:00:03]} e5 {[%clk 00:00:54]} {[%emt 00:00:03]} 21. Qg4
{[%clk 00:00:59]} {[%emt 00:00:08]} b5 {[%clk 00:00:38]} {[%emt 00:00:19]} 22.
Ne3 {[%clk 00:00:49]} {[%emt 00:00:12]} Rxd1+ {[%clk 00:00:31]} {[%emt
00:00:08]} 23. Rxd1 {[%clk 00:00:50]} {[%emt 00:00:01]} Re8 {[%clk 00:00:19]}
{[%emt 00:00:15]} 24. Rd7 {[%clk 00:00:43]} {[%emt 00:00:08]} Qe6 {[%clk
00:00:17]} {[%emt 00:00:04]} 25. Qxg7# {[%clk 00:00:44]} {[%emt 00:00:02]} 1-0

[Event "MČR v bleskovém šachu družstev 2019"]
[Site "Teplice, Czech Republic"]
[Date "2019.09.14"]
[Round "1.6"]
[White "Lorenc, Tomas"]
[Black "Sokolov, Alexander"]
[Result "0-1"]
[TimeControl "3 mim. + 2 s"]
[BlackTitle "FM"]
[WhiteFideId "313203"]
[BlackFideId "4119177"]
[WhiteElo "2094"]
[BlackElo "2417"]

1. c4 {[%clk 00:03:02]} Nf6 {[%clk 00:03:03]} {[%emt 00:00:01]} 2. g3 {[%clk
00:03:03]} {[%emt 00:00:01]} g6 {[%clk 00:03:04]} {[%emt 00:00:01]} 3. Bg2
{[%clk 00:03:04]} Bg7 {[%clk 00:03:06]} {[%emt 00:00:01]} 4. Nf3 {[%clk
00:03:04]} {[%emt 00:00:01]} O-O {[%clk 00:03:06]} {[%emt 00:00:01]} 5. O-O
{[%clk 00:03:05]} {[%emt 00:00:02]} d6 {[%clk 00:03:07]} {[%emt 00:00:02]} 6.
Nc3 {[%clk 00:03:03]} {[%emt 00:00:03]} Nbd7 {[%clk 00:03:07]} {[%emt
00:00:01]} 7. d3 {[%clk 00:03:01]} {[%emt 00:00:04]} e5 {[%clk 00:03:08]}
{[%emt 00:00:01]} 8. b4 {[%clk 00:03:01]} {[%emt 00:00:02]} c6 {[%clk
00:03:09]} {[%emt 00:00:02]} 9. a4 {[%clk 00:03:01]} {[%emt 00:00:02]} Rb8
{[%clk 00:03:03]} {[%emt 00:00:08]} 10. b5 {[%clk 00:03:01]} {[%emt 00:00:02]}
c5 {[%clk 00:03:04]} {[%emt 00:00:01]} 11. a5 {[%clk 00:02:45]} {[%emt
00:00:17]} Nh5 {[%clk 00:02:55]} {[%emt 00:00:11]} 12. Nd5 {[%clk 00:02:36]}
{[%emt 00:00:11]} e4 {[%clk 00:02:48]} {[%emt 00:00:10]} 13. Bg5 {[%clk
00:02:01]} {[%emt 00:00:37]} f6 {[%clk 00:02:44]} {[%emt 00:00:06]} 14. Nxf6+
{[%clk 00:01:20]} {[%emt 00:00:43]} Bxf6 {[%clk 00:02:41]} {[%emt 00:00:06]} 15.
Bh6 {[%clk 00:00:54]} {[%emt 00:00:28]} exf3 {[%clk 00:02:34]} {[%emt
00:00:08]} 16. Bxf3 {[%clk 00:00:52]} {[%emt 00:00:04]} Bg7 {[%clk 00:02:26]}
{[%emt 00:00:10]} 17. Bxg7 {[%clk 00:00:35]} {[%emt 00:00:19]} Nxg7 {[%clk
00:02:27]} {[%emt 00:00:02]} 18. d4 {[%clk 00:00:34]} {[%emt 00:00:03]} Nf6
{[%clk 00:02:19]} {[%emt 00:00:10]} 19. e4 {[%clk 00:00:29]} {[%emt 00:00:07]}
Ne6 {[%clk 00:02:00]} {[%emt 00:00:21]} 20. e5 {[%clk 00:00:19]} {[%emt
00:00:13]} dxe5 {[%clk 00:01:47]} {[%emt 00:00:15]} 21. dxe5 {[%clk 00:00:19]}
{[%emt 00:00:01]} Qxd1 {[%clk 00:01:40]} {[%emt 00:00:09]} 22. Raxd1 {[%clk
00:00:20]} Nd4 {[%clk 00:01:38]} {[%emt 00:00:05]} 23. Bd5+ {[%clk 00:00:06]}
{[%emt 00:00:16]} Nxd5 {[%clk 00:01:32]} {[%emt 00:00:07]} 24. cxd5 {[%clk
00:00:07]} {[%emt 00:00:01]} Bh3 {[%clk 00:01:31]} {[%emt 00:00:04]} 0-1